fUST/lending_fUST_20240805
["ID","MTS","AMOUNT","RATE_DAILY","PERIOD"]
[334235832,1722852649211,-500.0,0.00041095,31]
[334235833,1722852649221,-500.0,0.00041095,31]
[334235834,1722852649231,-500.0,0.00041095,31]
[334235835,1722852649241,-500.0,0.00041095,31]
[334235836,1722852649250,-9962.91,0.00041095,31]
[334235837,1722852649260,-500.0,0.00041095,31]
[334235838,1722852649269,-500.0,0.00041095,31]
[334235839,1722852649285,-500.0,0.00041095,31]
[334235840,1722852649295,-500.0,0.00041095,31]
[334235841,1722852649305,-873.28,0.00041095,31]
[334235842,1722852649314,-500.0,0.00041095,31]
[334235843,1722852649324,-500.0,0.00041095,31]
[334235844,1722852649334,-500.0,0.00041095,31]
[334235845,1722852649344,-500.0,0.00041095,31]
[334235846,1722852649354,-500.0,0.00041095,31]
[334235847,1722852649363,-449.66155475,0.00041095,31]
[334235848,1722852649373,-500.0,0.00041095,31]
[334235849,1722852649383,-500.0,0.00041095,31]
[334235850,1722852649393,-1646.25,0.00041095,31]
[334235851,1722852649403,-12322.01,0.00041095,31]
[334235852,1722852649413,-500.0,0.00041095,31]
[334235853,1722852649422,-1939.85,0.00041095,31]
[334235854,1722852649433,-500.0,0.00041095,31]
[334235855,1722852649443,-828.29,0.00041095,31]
[334235856,1722852649452,-500.0,0.00041095,31]
[334235857,1722852649463,-179.13555534,0.00041095,31]
[334235858,1722852649474,-1354.53,0.00041095,31]
[334235859,1722852649483,-500.0,0.00041095,31]
[334235860,1722852649493,-500.0,0.00041095,31]
[334235861,1722852649503,-500.0,0.00041095,31]
[334235862,1722852649512,-617.33,0.00041095,31]
[334235863,1722852649525,-18287.48,0.00041095,120]
[334235864,1722852649533,-1578.27,0.00041095,31]
[334235865,1722852649543,-500.0,0.00041095,31]
[334235866,1722852649553,-500.0,0.00041095,31]
[334235867,1722852649562,-958.54,0.00041095,31]
[334235868,1722852649571,-776.81,0.00041095,31]
[334235869,1722852649581,-10260.51381052,0.0004116,30]
[334235870,1722852649591,-1410.0,0.00041253,2]
[334235871,1722852649601,-955.0,0.000413,30]
[334235872,1722852649611,-235.0658705,0.0004137,2]
[334235873,1722852649621,-152.0,0.00041508,31]
[334235874,1722852649631,-152.0,0.00041508,31]
[334235875,1722852649642,-1172.75275218,0.00041606,2]
[334235876,1722852649651,-155.0,0.0004164,46]
[334235877,1722852649661,-500.0,0.00041642,31]
[334235878,1722852649672,-500.0,0.00041642,31]
[334235879,1722852649681,-500.0,0.00041642,31]
[334235880,1722852649691,-500.0,0.00041642,31]
[334235881,1722852649701,-500.0,0.00041642,31]
[334235882,1722852649710,-500.0,0.00041642,31]
[334235883,1722852649720,-500.0,0.00041642,31]
[334235884,1722852649729,-500.0,0.00041642,31]
[334235885,1722852649739,-500.0,0.00041642,31]
[334235886,1722852649749,-174.88483532,0.00041642,31]
[334235887,1722852649758,-961.58,0.00041642,31]
[334235888,1722852649767,-961.58,0.00041642,31]
[334235889,1722852649780,-961.58,0.00041642,31]
[334235890,1722852649790,-961.58,0.00041642,31]
[334235891,1722852649799,-961.58,0.00041642,31]
[334235892,1722852649809,-961.58,0.00041642,31]
[334235893,1722852649818,-961.58,0.00041642,31]
[334235894,1722852649828,-961.58,0.00041642,31]
[334235895,1722852649837,-961.58,0.00041642,31]
[334235896,1722852649846,-961.67710692,0.00041642,31]
[334235897,1722852649856,-57977.92445254,0.00041643,15]
[334235898,1722852649866,-500.0,0.00041643,31]
[334235899,1722852649875,-2241.22,0.00041643,31]
[334235900,1722852649885,-2055.21,0.00041643,31]
[334235901,1722852649896,-500.0,0.00041643,31]
[334235902,1722852649905,-500.0,0.00041643,31]
[334235903,1722852649915,-500.0,0.00041643,31]
[334235904,1722852649925,-500.0,0.00041643,31]
[334235905,1722852649936,-701.41,0.00041643,31]
[334235906,1722852649945,-500.0,0.00041643,31]
[334235907,1722852649956,-500.0,0.00041643,31]
[334235908,1722852649968,-500.0,0.00041643,31]
[334235909,1722852649979,-500.0,0.00041643,31]
[334235910,1722852649988,-500.0,0.00041643,31]
[334235911,1722852649998,-534.20292297,0.00041643,31]
[334235912,1722852650009,-508.92307969,0.00041643,31]
[334235913,1722852650019,-500.0,0.00041643,31]
[334235914,1722852650032,-500.0,0.00041643,31]
[334235915,1722852650044,-500.0,0.00041643,31]
[334235916,1722852650053,-500.0,0.00041643,31]
[334235917,1722852650063,-1000.0,0.00041643,90]
[334235918,1722852650072,-669.55,0.00041643,31]
[334235919,1722852650082,-1680.47,0.00041643,31]
[334235920,1722852650091,-500.0,0.00041643,31]
[334235921,1722852650101,-500.0,0.00041643,2]
[334235922,1722852650111,-1966.52,0.00041643,31]
[334235923,1722852650120,-500.0,0.00041643,31]
[334235924,1722852650130,-500.0,0.00041643,31]
[334235925,1722852650140,-500.0,0.00041643,31]
[334235926,1722852650149,-1266.89,0.00041643,31]
[334235927,1722852650159,-500.0,0.00041643,31]
[334235928,1722852650169,-1617.75,0.00041643,31]
[334235929,1722852650178,-500.0,0.00041643,31]
[334235930,1722852650187,-500.0,0.00041643,31]
[334235931,1722852650196,-545.56245258,0.00041643,31]
[334235932,1722852650206,-580.55,0.00041643,31]
[334235933,1722852650215,-5000.0,0.00041643,30]
[334235934,1722852650224,-500.0,0.00041643,31]
[334235935,1722852650234,-502.94,0.00041643,31]
[334235936,1722852650243,-838.85,0.00041643,31]
[334235937,1722852650253,-500.0,0.00041643,31]
[334235938,1722852650262,-500.0,0.00041643,31]
[334235939,1722852650271,-363.76476106,0.00041643,4]
[334235940,1722852650283,-465.45533903,0.00041643,31]
[334235941,1722852650293,-325.52924746,0.00041643,3]
[334235942,1722852650302,-500.0,0.00041643,31]
[334235943,1722852650311,-566.78,0.00041643,31]
[334235944,1722852650321,-918.57,0.00041643,31]
[334235945,1722852650330,-504.09079125,0.00041643,31]
[334235946,1722852650340,-500.0,0.00041643,31]
[334235947,1722852650349,-500.0,0.00041643,31]
[334235948,1722852650359,-500.0,0.00041643,31]
[334235949,1722852650368,-500.0,0.00041643,31]
[334235950,1722852650378,-1623.65,0.00041643,31]
[334235951,1722852650387,-500.0,0.00041643,31]
[334235952,1722852650396,-611.75,0.00041643,31]
[334235953,1722852650405,-502.71584197,0.00041643,31]
[334235954,1722852650415,-500.0,0.00041643,31]
[334235955,1722852650424,-500.0,0.00041643,31]
[334235956,1722852650433,-500.0,0.00041643,31]
[334235957,1722852650443,-500.0,0.00041643,31]
[334235958,1722852650577,-500.0,0.00041643,31]
[334235959,1722852650586,-500.0,0.00041643,31]
[334235960,1722852650595,-1771.48,0.00041643,31]
[334235961,1722852650604,-500.0,0.00041643,31]
[334235962,1722852650613,-500.0,0.00041643,2]
[334235963,1722852650622,-859.35,0.00041643,31]
[334235964,1722852650631,-500.0,0.00041643,31]
[334235965,1722852650640,-500.0,0.00041643,31]
[334235966,1722852650649,-500.0,0.00041643,31]
[334235967,1722852650658,-1398.02,0.00041643,31]
[334235968,1722852650667,-500.0,0.00041643,31]
[334235969,1722852650676,-500.0,0.00041643,31]
[334235970,1722852650686,-500.0,0.00041643,31]
[334235971,1722852650695,-500.0,0.00041643,31]
[334235972,1722852650704,-500.0,0.00041643,31]
[334235973,1722852650714,-600.76,0.00041643,31]
[334235974,1722852650723,-510.87018023,0.00041643,31]
[334235975,1722852650732,-500.0,0.00041643,31]
[334235976,1722852650741,-822.74,0.00041643,31]
[334235977,1722852650750,-500.0,0.00041643,31]
[334235978,1722852650759,-500.0,0.00041643,31]
[334235979,1722852650768,-500.0,0.00041643,31]
[334235980,1722852650779,-500.0,0.00041643,31]
[334235981,1722852650788,-500.0,0.00041643,31]
[334235982,1722852650798,-500.0,0.00041643,31]
[334235983,1722852650807,-500.0,0.00041643,31]
[334235984,1722852650817,-1291.44,0.00041643,31]
[334235985,1722852650827,-1495.08,0.00041643,31]
[334235986,1722852650836,-500.0,0.00041643,31]
[334235987,1722852650845,-500.0,0.00041643,31]
[334235988,1722852650854,-500.0,0.00041643,31]
[334235989,1722852650864,-605.55,0.00041643,31]
[334235990,1722852650873,-500.0,0.00041643,31]
[334235991,1722852650883,-500.0,0.00041643,31]
[334235992,1722852650892,-500.0,0.00041643,31]
[334235993,1722852650901,-508.80427827,0.00041643,31]
[334235994,1722852650911,-488.30734132,0.00041643,10]
[334235995,1722852650920,-500.0,0.00041643,31]
[334235996,1722852650929,-196.6451795,0.00041643,31]
[334235997,1722852650938,-500.0,0.00041643,31]
[334235998,1722852650948,-500.0,0.00041643,31]
[334235999,1722852650962,-500.0,0.00041643,31]
[334236000,1722852650971,-514.26,0.00041643,31]
[334236001,1722852650980,-500.0,0.00041643,31]
[334236002,1722852650989,-500.0,0.00041643,31]
[334236003,1722852650999,-500.0,0.00041643,31]
[334236004,1722852651010,-500.0,0.00041643,31]
[334236005,1722852651019,-500.0,0.00041643,31]
[334236006,1722852651030,-500.0,0.00041643,31]
[334236007,1722852651041,-500.0,0.00041643,31]
[334236008,1722852651049,-500.0,0.00041643,31]
[334236009,1722852651059,-500.0,0.00041643,31]
[334236010,1722852651068,-500.0,0.00041643,31]
[334236011,1722852651077,-583.61,0.00041643,31]
[334236012,1722852651086,-500.0,0.00041643,31]
[334236013,1722852651096,-500.0,0.00041643,31]
[334236014,1722852651105,-500.0,0.00041643,31]
[334236015,1722852651114,-1653.79,0.00041643,31]
[334236016,1722852651124,-500.0,0.00041643,31]
[334236017,1722852651133,-500.0,0.00041643,31]
[334236018,1722852651142,-500.0,0.00041643,31]
[334236019,1722852651152,-500.0,0.00041643,31]
[334236020,1722852651161,-500.0,0.00041643,31]
[334236021,1722852651170,-500.0,0.00041643,31]
[334236022,1722852651179,-564.70369544,0.00041643,31]
[334236023,1722852651189,-934.25,0.00041643,31]
[334236024,1722852651198,-502.69485709,0.00041643,31]
[334236025,1722852651207,-554.48,0.00041643,31]
[334236026,1722852651216,-572.14,0.00041643,31]
[334236027,1722852651225,-500.0,0.00041643,31]
[334236028,1722852651234,-500.0,0.00041643,31]
[334236029,1722852651243,-816.59,0.00041643,31]
[334236030,1722852651253,-500.0,0.00041643,31]
[334236031,1722852651261,-500.0,0.00041643,31]
[334236032,1722852651271,-508.93,0.00041643,31]
[334236033,1722852651284,-500.0,0.00041643,31]
[334236034,1722852651293,-500.0,0.00041643,31]
[334236035,1722852651303,-1188.32,0.00041643,31]
[334236036,1722852651312,-523.2,0.00041643,31]
[334236037,1722852651321,-500.0,0.00041643,31]
[334236038,1722852651330,-1425.71,0.00041643,31]
[334236039,1722852651340,-500.0,0.00041643,31]
[334236040,1722852651349,-500.0,0.00041643,31]
[334236041,1722852651358,-500.0,0.00041643,31]
[334236042,1722852651367,-500.0,0.00041643,31]
[334236043,1722852651376,-500.0,0.00041643,31]
[334236044,1722852651385,-514.60763727,0.00041643,31]
[334236045,1722852651394,-500.0,0.00041643,31]
[334236046,1722852651404,-1229.97,0.00041643,31]
[334236047,1722852651413,-500.0,0.00041643,31]
[334236048,1722852651422,-500.0,0.00041643,31]
[334236049,1722852651432,-500.0,0.00041643,31]
[334236050,1722852651442,-500.0,0.00041643,31]
[334236051,1722852651451,-500.0,0.00041643,31]
[334236052,1722852651460,-500.0,0.00041643,31]
[334236053,1722852651469,-500.0,0.00041643,31]
[334236054,1722852651478,-500.0,0.00041643,30]
[334236055,1722852651487,-500.0,0.00041643,31]
[334236056,1722852651496,-500.0,0.00041643,31]
[334236057,1722852651505,-500.0,0.00041643,31]
[334236058,1722852651515,-500.0,0.00041643,31]
[334236059,1722852651528,-500.0,0.00041643,31]
[334236060,1722852651537,-500.0,0.00041643,31]
[334236061,1722852651546,-500.0,0.00041643,31]
[334236062,1722852651556,-500.0,0.00041643,31]
[334236063,1722852651565,-500.0,0.00041643,31]
[334236064,1722852651574,-500.0,0.00041643,31]
[334236065,1722852651583,-500.0,0.00041643,31]
[334236066,1722852651593,-500.0,0.00041643,31]
[334236067,1722852651602,-500.0,0.00041643,31]
[334236068,1722852651612,-528.34028875,0.00041643,31]
[334236069,1722852651621,-500.0,0.00041643,31]
[334236070,1722852651631,-459.80939209,0.00041643,31]
[334236071,1722852651640,-500.0,0.00041643,31]
[334236072,1722852651650,-500.0,0.00041643,31]
[334236073,1722852651679,-500.0,0.00041643,31]
[334236074,1722852651687,-586.83,0.00041643,31]
[334236075,1722852651696,-500.0,0.00041643,31]
[334236076,1722852651706,-500.0,0.00041643,31]
[334236077,1722852651715,-806.13,0.00041643,31]
[334236078,1722852651724,-500.0,0.00041643,31]
[334236079,1722852651734,-500.0,0.00041643,31]
[334236080,1722852651743,-671.38,0.00041643,31]
[334236081,1722852651752,-500.0,0.00041643,31]
[334236082,1722852651762,-500.0,0.00041643,30]
[334236083,1722852651771,-404.62002121,0.00041643,31]
[334236084,1722852651784,-500.0,0.00041643,31]
[334236085,1722852651792,-500.0,0.00041643,31]
[334236086,1722852651801,-500.0,0.00041643,31]
[334236087,1722852651810,-500.0,0.00041643,31]
[334236088,1722852651820,-500.0,0.00041643,31]
[334236089,1722852651829,-500.0,0.00041643,31]
[334236090,1722852651838,-699.26,0.00041643,31]
[334236091,1722852651847,-500.0,0.00041643,31]
[334236092,1722852651856,-500.0,0.00041643,31]
[334236093,1722852651865,-500.0,0.00041643,31]
[334236094,1722852651874,-500.0,0.00041643,31]
[334236095,1722852651884,-500.0,0.00041643,31]
[334236096,1722852651893,-500.0,0.00041643,31]
[334236097,1722852651902,-500.0,0.00041643,31]
[334236098,1722852651912,-500.0,0.00041643,31]
[334236099,1722852651921,-513.78255743,0.00041643,31]
[334236100,1722852651930,-500.0,0.00041643,31]
[334236101,1722852651940,-500.0,0.00041643,31]
[334236102,1722852651949,-500.0,0.00041643,31]
[334236103,1722852651958,-500.0,0.00041643,31]
[334236104,1722852651971,-500.0,0.00041643,31]
[334236105,1722852651980,-500.0,0.00041643,31]
[334236106,1722852651989,-610.53,0.00041643,31]
[334236107,1722852651998,-1000.0,0.00041643,30]
[334236108,1722852652009,-500.0,0.00041643,31]
[334236109,1722852652018,-500.0,0.00041643,31]
[334236110,1722852652029,-500.0,0.00041643,31]
[334236111,1722852652040,-500.0,0.00041643,31]
[334236112,1722852652049,-500.0,0.00041643,31]
[334236113,1722852652059,-506.78500315,0.00041643,31]
[334236114,1722852652068,-500.0,0.00041643,31]
[334236115,1722852652077,-500.0,0.00041643,31]
[334236116,1722852652086,-500.0,0.00041643,31]
[334236117,1722852652096,-501.30338623,0.00041643,31]
[334236118,1722852652105,-500.0,0.00041643,31]
[334236119,1722852652115,-500.0,0.00041643,31]
[334236120,1722852652124,-500.0,0.00041643,31]
[334236121,1722852652136,-508.78165755,0.00041643,31]
[334236122,1722852652146,-500.0,0.00041643,31]
[334236123,1722852652155,-500.0,0.00041643,31]
[334236124,1722852652165,-507.71563522,0.00041643,31]
[334236125,1722852652174,-500.0,0.00041643,31]
[334236126,1722852652184,-500.0,0.00041643,31]
[334236127,1722852652194,-500.0,0.00041643,31]
[334236128,1722852652204,-504.83438512,0.00041643,31]
[334236129,1722852652213,-500.0,0.00041643,31]
[334236130,1722852652223,-500.0,0.00041643,31]
[334236131,1722852652233,-1129.33,0.00041643,31]
[334236132,1722852652242,-500.0,0.00041643,31]
[334236133,1722852652253,-527.60049729,0.00041643,31]
[334236134,1722852652262,-957.56,0.00041643,31]
[334236135,1722852652271,-500.0,0.00041643,31]
[334236136,1722852652284,-500.0,0.00041643,31]
[334236137,1722852652293,-1487.97,0.00041643,31]
[334236138,1722852652303,-500.0,0.00041643,31]
[334236139,1722852652312,-500.0,0.00041643,31]
[334236140,1722852652321,-500.0,0.00041643,31]
[334236141,1722852652330,-500.0,0.00041643,31]
[334236142,1722852652339,-500.0,0.00041643,31]
[334236143,1722852652350,-1195.11,0.00041643,31]
[334236144,1722852652360,-631.46,0.00041643,31]
[334236145,1722852652369,-500.0,0.00041643,31]
[334236146,1722852652378,-500.0,0.00041643,31]
[334236147,1722852652387,-500.0,0.00041643,31]
[334236148,1722852652397,-500.0,0.00041643,31]
[334236149,1722852652406,-520.51517694,0.00041643,31]
[334236150,1722852652415,-500.0,0.00041643,31]
[334236151,1722852652425,-500.0,0.00041643,31]
[334236152,1722852652434,-500.0,0.00041643,31]
[334236153,1722852652444,-500.0,0.00041643,31]
[334236154,1722852652454,-500.0,0.00041643,31]
[334236155,1722852652463,-500.0,0.00041643,31]
[334236156,1722852652472,-2219.06,0.00041643,31]
[334236157,1722852652481,-500.0,0.00041643,31]
[334236158,1722852652490,-500.0,0.00041643,31]
[334236159,1722852652499,-500.0,0.00041643,31]
[334236160,1722852652509,-585.57,0.00041643,31]
[334236161,1722852652518,-508.8009674,0.00041643,31]
[334236162,1722852652529,-500.0,0.00041643,31]
[334236163,1722852652539,-500.0,0.00041643,31]
[334236164,1722852652548,-500.0,0.00041643,31]
[334236165,1722852652558,-954.64,0.00041643,31]
[334236166,1722852652567,-501.57914443,0.00041643,31]
[334236167,1722852652576,-500.0,0.00041643,31]
[334236168,1722852652585,-4944.56,0.00041643,31]
[334236169,1722852652594,-500.0,0.00041643,31]
[334236170,1722852652603,-573.66420502,0.00041643,31]
[334236171,1722852652613,-508.61971035,0.00041643,31]
[334236172,1722852652622,-636.45797424,0.00041643,31]
[334236173,1722852652632,-500.0,0.00041643,31]
[334236174,1722852652642,-500.0,0.00041643,31]
[334236175,1722852652651,-500.0,0.00041643,31]
[334236176,1722852652661,-500.0,0.00041643,31]
[334236177,1722852652670,-500.0,0.00041643,31]
[334236178,1722852652679,-500.0,0.00041643,31]
[334236179,1722852652689,-500.0,0.00041643,31]
[334236180,1722852652698,-502.142652,0.00041643,31]
[334236181,1722852652708,-500.0,0.00041643,31]
[334236182,1722852652717,-975.32,0.00041643,31]
[334236183,1722852652727,-500.0,0.00041643,31]
[334236184,1722852652737,-500.0,0.00041643,31]
[334236185,1722852652746,-500.0,0.00041643,31]
[334236186,1722852652756,-544.07,0.00041643,31]
[334236187,1722852652767,-500.0,0.00041643,31]
[334236188,1722852652778,-500.0,0.00041643,31]
[334236189,1722852652790,-500.0,0.00041643,31]
[334236190,1722852652802,-500.0,0.00041643,31]
[334236191,1722852652811,-500.0,0.00041643,31]
[334236192,1722852652820,-500.0,0.00041643,31]
[334236193,1722852652830,-504.77633039,0.00041643,31]
[334236194,1722852652839,-883.54,0.00041643,31]
[334236195,1722852652848,-500.0,0.00041643,31]
[334236196,1722852652856,-287.2211066,0.00041643,31]
[334236197,1722852652866,-20891.99,0.00041643,31]
[334236198,1722852652875,-500.0,0.00041643,31]
[334236199,1722852652884,-500.0,0.00041643,31]
[334236200,1722852652893,-500.0,0.00041643,31]
[334236201,1722852652903,-1481.06,0.00041643,31]
[334236202,1722852652913,-2942.32,0.00041643,31]
[334236203,1722852652925,-500.0,0.00041643,31]
[334236204,1722852652940,-3355.23,0.00041643,21]
[334236205,1722852652959,-1147.92,0.00041643,31]
[334236206,1722852652978,-500.0,0.00041643,31]
[334236207,1722852652997,-603.65,0.00041643,31]
[334236208,1722852653018,-3285.9,0.00041643,31]
[334236209,1722852653038,-500.0,0.00041643,31]
[334236210,1722852653057,-500.0,0.00041643,31]
[334236211,1722852653066,-500.0,0.00041643,31]
[334236212,1722852653076,-505.57175316,0.00041643,31]
[334236213,1722852653195,-500.0,0.00041643,31]
[334236214,1722852653206,-642.34,0.00041643,31]
[334236215,1722852653215,-500.0,0.00041643,31]
[334236216,1722852653224,-501.15138031,0.00041643,31]
[334236217,1722852653233,-500.0,0.00041643,31]
[334236218,1722852653243,-548.91,0.00041643,31]
[334236219,1722852653252,-500.0,0.00041643,31]
[334236220,1722852653261,-500.0,0.00041643,31]
[334236221,1722852653270,-500.0,0.00041643,31]
[334236222,1722852653284,-500.0,0.00041643,31]
[334236223,1722852653293,-500.0,0.00041643,31]
[334236224,1722852653303,-9240.94,0.00041643,31]
[334236225,1722852653312,-500.0,0.00041643,31]
[334236226,1722852653321,-11637.79,0.00041643,31]
[334236227,1722852653330,-500.0,0.00041643,31]
[334236228,1722852653339,-1210.98,0.00041643,31]
[334236229,1722852653348,-500.0,0.00041643,31]
[334236230,1722852653357,-500.0,0.00041643,31]
[334236231,1722852653366,-500.0,0.00041643,31]
[334236232,1722852653375,-500.0,0.00041643,31]
[334236233,1722852653384,-500.0,0.00041643,31]
[334236234,1722852653393,-976.0,0.00041643,31]
[334236235,1722852653402,-500.0,0.00041643,31]
[334236236,1722852653411,-435.47384145,0.00041643,31]
[334236237,1722852653421,-1494.19,0.00041643,31]
[334236238,1722852653430,-500.0,0.00041643,31]
[334236239,1722852653439,-1047.09,0.00041643,31]
[334236240,1722852653449,-500.0,0.00041643,31]
[334236241,1722852653459,-3543.93,0.00041643,31]
[334236242,1722852653468,-500.0,0.00041643,31]
[334236243,1722852653478,-518.85339881,0.00041643,31]
[334236244,1722852653487,-500.0,0.00041643,31]
[334236245,1722852653496,-500.0,0.00041643,31]
[334236246,1722852653506,-895.94,0.00041643,31]
[334236247,1722852653515,-1255.63,0.00041643,31]
[334236248,1722852653524,-500.0,0.00041643,31]
[334236249,1722852653535,-500.0,0.00041643,31]
[334236250,1722852653546,-1378.25,0.00041643,31]
[334236251,1722852653555,-500.0,0.00041643,31]
[334236252,1722852653569,-500.0,0.00041643,31]
[334236253,1722852653578,-546.67,0.00041643,31]
[334236254,1722852653587,-622.92,0.00041643,31]
[334236255,1722852653597,-500.0,0.00041643,31]
[334236256,1722852653606,-500.0,0.00041643,31]
[334236257,1722852653615,-500.0,0.00041643,31]
[334236258,1722852653625,-1469.33,0.00041643,31]
[334236259,1722852653634,-500.0,0.00041643,31]
[334236260,1722852653644,-500.0,0.00041643,31]
[334236261,1722852653653,-455.85339617,0.00041643,31]
[334236262,1722852653663,-512.1685571,0.00041643,31]
[334236263,1722852653672,-500.0,0.00041643,31]
[334236264,1722852653682,-200.0,0.00041643,7]
[334236265,1722852653692,-500.0,0.00041643,31]
[334236266,1722852653701,-500.0,0.00041643,31]
[334236267,1722852653711,-500.0,0.00041643,31]
[334236268,1722852653721,-500.0,0.00041643,31]
[334236269,1722852653730,-500.0,0.00041643,31]
[334236270,1722852653739,-500.0,0.00041643,31]
[334236271,1722852653749,-158.93889665,0.00041643,31]
[334236272,1722852653759,-313.66982165,0.00041643,31]
[334236273,1722852653768,-500.0,0.00041643,31]
[334236274,1722852653782,-500.0,0.00041643,31]
[334236275,1722852653791,-500.0,0.00041643,31]
[334236276,1722852653801,-500.0,0.00041643,31]
[334236277,1722852653811,-1291.27,0.00041643,31]
[334236278,1722852653820,-500.0,0.00041643,31]
[334236279,1722852653830,-500.0,0.00041643,31]
[334236280,1722852653839,-500.0,0.00041643,31]
[334236281,1722852653849,-1027.21,0.00041643,31]
[334236282,1722852653859,-646.39,0.00041643,31]
[334236283,1722852653868,-4921.19,0.00041643,31]
[334236284,1722852653878,-1275.06,0.00041643,31]
[334236285,1722852653888,-763.47,0.00041643,31]
[334236286,1722852653898,-164.15737138,0.00041643,31]
[334236287,1722852653908,-500.0,0.00041643,31]
[334236288,1722852653918,-1134.16,0.00041643,31]
[334236289,1722852653927,-1252.27,0.00041643,31]
[334236290,1722852653937,-883.22,0.00041643,31]
[334236291,1722852653946,-500.0,0.00041643,31]
[334236292,1722852653960,-500.0,0.00041643,31]
[334236293,1722852653970,-6256.44,0.00041643,31]
[334236294,1722852653979,-500.0,0.00041643,31]
[334236295,1722852653989,-2018.39,0.00041643,31]
[334236296,1722852653999,-500.0,0.00041643,31]
[334236297,1722852654009,-500.0,0.00041643,31]
[334236298,1722852654019,-500.0,0.00041643,31]
[334236299,1722852654035,-500.0,0.00041643,31]
[334236300,1722852654045,-500.0,0.00041643,31]
[334236301,1722852654054,-500.0,0.00041643,31]
[334236302,1722852654064,-500.0,0.00041643,31]
[334236303,1722852654074,-1185.35,0.00041643,31]
[334236304,1722852654084,-1411.94,0.00041643,31]
[334236305,1722852654094,-500.0,0.00041643,31]
[334236306,1722852654104,-500.0,0.00041643,31]
[334236307,1722852654113,-500.0,0.00041643,31]
[334236308,1722852654123,-1100.32,0.00041643,31]
[334236309,1722852654132,-500.0,0.00041643,31]
[334236310,1722852654142,-500.0,0.00041643,31]
[334236311,1722852654152,-475.00046827,0.00041643,31]
[334236312,1722852654162,-4730.21,0.00041643,31]
[334236313,1722852654171,-500.0,0.00041643,31]
[334236314,1722852654181,-576.571475,0.00041643,14]
[334236315,1722852654191,-478.37654777,0.00041643,31]
[334236316,1722852654200,-500.0,0.00041643,31]
[334236317,1722852654209,-553.68,0.00041643,31]
[334236318,1722852654220,-659.55,0.00041643,31]
[334236319,1722852654230,-500.0,0.00041643,31]
[334236320,1722852654240,-576.571475,0.00041643,14]
[334236321,1722852654250,-500.0,0.00041643,31]
[334236322,1722852654260,-500.0,0.00041643,31]
[334236323,1722852654270,-500.0,0.00041643,31]
[334236324,1722852654289,-500.0,0.00041643,31]
[334236325,1722852654299,-500.0,0.00041643,31]
[334236326,1722852654310,-299.44864472,0.00041643,31]
[334236327,1722852654320,-4857.65,0.00041643,31]
[334236328,1722852654330,-500.0,0.00041643,31]
[334236329,1722852654341,-500.0,0.00041643,31]
[334236330,1722852654351,-500.0,0.00041643,31]
[334236331,1722852654362,-500.0,0.00041643,31]